bitfinex/quotes_SOLUSD_20250210
["timestamp","ask_amount","ask_price","bid_price","bid_amount"]
[1739196784244,0.6,206.74,206.7,14.70113213]
[1739196784443,0.6,206.74,206.7,25.88725323]
[1739196784835,0.6,206.71,206.7,14.70113213]
[1739196785245,11.7861211,206.71,206.7,14.70113213]
[1739196785419,12.7861211,206.71,206.7,14.70113213]
[1739196785623,26.19796963,206.71,206.7,14.70113213]
[1739196785935,1.6,206.71,206.7,14.70113213]
[1739196786437,0.6,206.71,206.7,14.70113213]
[1739196786949,1.6,206.71,206.7,14.70113213]
[1739196787420,12.7861211,206.71,206.7,14.70113213]
[1739196787835,0.6,206.67,206.66,20.0]
[1739196788629,0.6,206.64,206.63,11.1861211]
[1739196790138,1.0,206.66,206.63,11.1861211]
[1739196790139,0.6,206.66,206.64,4.8393]
[1739196790339,0.6,206.66,206.65,11.1861211]
[1739196790538,0.6,206.68,206.65,11.1861211]
[1739196790848,0.6,206.69,206.67,31.1861211]
[1739196791161,0.6,206.69,206.68,11.1861211]
[1739196791357,0.6,206.69,206.67,31.1861211]
[1739196791550,0.6,206.69,206.66,11.1861211]
[1739196791855,0.6,206.67,206.66,16.0249211]
[1739196792252,0.6,206.67,206.66,4.8388]
[1739196793045,1.0,206.69,206.64,11.1861211]
[1739196793046,0.6,206.65,206.64,11.1861211]
[1739196793956,0.6,206.65,206.64,16.0254211]
[1739196794464,0.6,206.71,206.67,20.0]
[1739196794769,0.6,206.71,206.69,11.1861211]
[1739196795079,0.6,206.73,206.7,11.1861211]
[1739196795257,0.6,206.75,206.72,11.1861211]
[1739196795440,0.6,206.75,206.74,11.1861211]
[1739196795640,0.6,206.75,206.73,11.1861211]
[1739196795841,0.6,206.71,206.7,11.1861211]
[1739196796137,0.6,206.71,206.7,16.0240211]
[1739196796342,0.6,206.71,206.7,4.8379]
[1739196796768,0.6,206.71,206.7,16.0240211]
[1739196796976,1.6,206.71,206.7,4.8379]
[1739196797858,0.6,206.66,206.65,16.0251211]
[1739196798055,0.6,206.66,206.65,4.839]
[1739196800158,0.6,206.66,206.65,11.1861211]
[1739196800358,0.6,206.66,206.65,31.1861211]
[1739196800884,0.6,206.66,206.64,4.8693]
[1739196801373,0.6,206.66,206.64,16.0554211]
[1739196801574,1.0,206.69,206.65,31.1861211]
[1739196801780,1.0,206.69,206.68,11.1861211]
[1739196802073,1.0,206.69,206.67,11.1861211]
[1739196802259,1.0,206.69,206.68,11.1861211]
[1739196802576,1.0,206.71,206.67,11.1861211]
[1739196802769,1.0,206.71,206.69,11.1861211]
[1739196802960,1.0,206.71,206.7,11.1861211]
[1739196803544,1.0,206.74,206.7,11.1861211]
[1739196803751,1.0,206.8,206.73,31.1861211]
[1739196804056,1.0,206.77,206.74,11.1861211]
[1739196804263,1.0,206.77,206.74,2.85001235]
[1739196804457,1.0,206.79,206.74,2.85001235]
[1739196804861,1.0,206.79,206.73,20.0]
[1739196804862,1.0,206.81,206.78,11.1861211]
[1739196805064,1.0,206.81,206.76,11.1861211]
[1739196805660,1.0,206.76,206.74,4.8369]
[1739196806080,1.0,206.78,206.74,11.1861211]
[1739196806377,13.41184853,206.87,206.76,11.1861211]
[1739196806378,1.0,206.8,206.76,11.1861211]
[1739196806864,1.0,206.85,206.78,11.1861211]
[1739196807258,1.0,206.83,206.78,11.1861211]
[1739196807887,1.0,206.85,206.78,11.1861211]
[1739196808318,1.0,206.85,206.81,4.8353]
[1739196809661,1.0,206.87,206.81,4.8353]
[1739196809867,1.0,206.87,206.82,11.1861211]
[1739196810687,10.37391574,206.89,206.81,16.9236]
[1739196810688,1.0,206.85,206.81,4.8353]
[1739196812300,1.0,206.87,206.81,4.8353]
[1739196812504,1.0,206.87,206.82,11.1861211]
[1739196813205,1.0,206.85,206.82,11.1861211]
[1739196813501,1.0,206.87,206.82,11.1861211]
[1739196813979,1.0,206.85,206.82,4.8351]
[1739196814379,1.0,206.85,206.82,16.0212211]
[1739196814893,1.0,206.87,206.82,4.8351]
[1739196815089,1.0,206.87,206.82,36.0212211]
[1739196815309,1.0,206.85,206.82,36.0212211]
[1739196815606,1.0,206.87,206.82,36.0212211]
[1739196816408,1.0,206.85,206.82,36.0212211]
[1739196816704,1.0,206.87,206.82,36.0212211]
[1739196816915,1.0,206.87,206.83,11.1861211]
[1739196817615,1.0,206.87,206.82,36.0212211]
[1739196818107,1.0,206.87,206.83,11.1861211]
[1739196818410,1.0,206.85,206.83,20.0]
[1739196818985,1.0,206.85,206.82,36.0212211]
[1739196819313,1.0,206.87,206.83,11.1861211]
[1739196819506,1.0,206.87,206.84,11.1861211]
[1739196819723,1.5855,206.92,206.84,11.1861211]
[1739196819724,1.0,206.89,206.84,11.1861211]
[1739196820339,1.0,206.89,206.85,4.8344]
[1739196820797,1.0,206.89,206.85,36.0205211]
[1739196821211,1.0,206.89,206.85,24.8344]
[1739196821805,1.0,206.89,206.85,16.0205211]
[1739196822104,1.0,206.89,206.85,36.0205211]
[1739196822424,0.063,206.87,206.85,36.0205211]
[1739196824229,0.063,206.87,206.86,11.1861211]
[1739196824405,0.063,206.87,206.86,16.0202211]
[1739196824603,0.063,206.87,206.86,4.8341]
[1739196824905,1.063,206.87,206.85,20.0]
[1739196825104,1.063,206.87,206.85,4.8344]
[1739196825402,1.063,206.87,206.85,16.0205211]
[1739196825605,1.063,206.87,206.85,4.8344]
[1739196826101,1.063,206.87,206.85,16.0205211]
[1739196827236,1.0,206.85,206.84,4.8346]
[1739196827637,1.0,206.85,206.82,4.8349]
[1739196828142,1.0,206.82,206.8,4.8354]
[1739196831814,1.0,206.8,206.79,16.0218211]
[1739196832025,1.0,206.8,206.77,11.1861211]
[1739196832325,1.0,206.8,206.78,4.8359]
[1739196835348,1.0,206.8,206.77,11.1861211]
[1739196835548,1.0,206.78,206.75,16.0228211]
[1739196835926,1.0,206.8,206.77,11.1861211]
[1739196836439,1.0,206.8,206.78,4.836]
[1739196837136,1.0,206.82,206.79,11.1861211]
[1739196838362,1.0,206.82,206.8,4.8355]
[1739196841762,1.0,206.8,206.78,4.836]
[1739196842456,1.0,206.82,206.79,11.1861211]
[1739196843735,1.0,206.82,206.78,7.19114459]
[1739196844361,1.0,206.8,206.79,20.0]
[1739196844861,1.0,206.78,206.77,4.8362]
[1739196845036,1.0,206.78,206.75,4.8365]
[1739196845835,1.0,206.75,206.74,12.05804459]
[1739196846037,1.0,206.75,206.74,4.8669]
[1739196846233,1.0,206.75,206.74,0.03]
[1739196849458,1.0,206.79,206.74,7.22114459]
[1739196849637,1.0,206.79,206.76,7.19114459]
[1739196850358,0.063,206.8,206.74,4.8669]
[1739196850359,1.0,206.76,206.74,4.8669]
[1739196850730,1.0,206.76,206.74,0.03]
[1739196851646,12.24668326,206.76,206.74,0.03]
[1739196852039,11.24668326,206.75,206.74,0.03]
[1739196855050,12.24668326,206.76,206.74,0.03]
[1739196856564,11.24668326,206.75,206.74,0.03]
[1739196858155,12.24668326,206.76,206.74,0.03]
[1739196858957,11.24668326,206.75,206.74,0.03]
[1739196860767,12.24668326,206.76,206.74,0.03]
[1739196861449,1.0,206.76,206.74,0.03]
[1739196863446,1.0,206.79,206.75,11.24668326]
[1739196863648,1.0,206.77,206.76,11.24668326]
[1739196864047,1.0,206.77,206.75,11.24668326]
[1739196864749,1.0,206.77,206.74,11.27668326]
[1739196865682,11.24668326,206.76,206.74,0.03]
[1739196865968,12.24668326,206.75,206.74,0.03]
[1739196866467,1.0,206.75,206.74,0.03]
[1739196870081,12.24668326,206.75,206.74,0.03]
[1739196870290,12.30968326,206.75,206.74,0.03]
[1739196870449,30.55823179,206.75,206.74,0.03]
[1739196872059,12.30968326,206.75,206.74,0.03]
[1739196873180,17.14638326,206.75,206.74,0.03]
[1739196874982,12.30968326,206.75,206.74,0.03]
[1739196875367,1.063,206.75,206.74,0.03]
[1739196877751,12.30968326,206.75,206.74,0.03]
[1739196885585,1.063,206.75,206.74,0.03]
[1739196886281,12.30968326,206.75,206.74,0.03]
[1739196889686,1.063,206.75,206.74,0.03]
[1739196890607,0.063,206.75,206.74,16.11358326]
[1739196890764,1.063,206.75,206.74,16.11358326]
[1739196890968,1.063,206.75,206.74,0.03]
[1739196891395,1.063,206.75,206.74,4.8669]
[1739196892498,1.063,206.75,206.74,0.03]
[1739196892801,0.663,206.75,206.74,0.03]
[1739196898611,12.6970024,206.75,206.74,0.03]
[1739196898814,7.8603024,206.75,206.74,0.03]
[1739196900787,12.6970024,206.75,206.74,0.03]
[1739196901517,26.10885093,206.75,206.74,0.03]
[1739196901908,7.8603024,206.75,206.74,0.03]
[1739196902290,13.60399388,206.75,206.74,0.03]
[1739196903320,0.663,206.71,206.7,0.03]
[1739196904918,0.663,206.73,206.71,20.0]
[1739196905119,7.61092013,206.75,206.72,12.0347024]
[1739196905292,7.61092013,206.76,206.74,7.1973024]
[1739196905693,7.61092013,206.76,206.75,11.23971686]
[1739196905890,0.663,206.74,206.73,11.23971686]
[1739196906512,8.27392013,206.76,206.73,11.23971686]
[1739196907426,0.663,206.76,206.74,4.8369]
[1739196907998,0.663,206.76,206.75,11.23971686]
[1739196908426,0.063,206.8,206.75,11.23971686]
[1739196908427,0.663,206.78,206.75,11.23971686]
[1739196908726,0.663,206.76,206.73,16.10681686]
[1739196908927,0.663,206.74,206.73,0.03]
[1739196912432,5.4999,206.74,206.73,0.03]
[1739196912631,19.81882344,206.74,206.73,0.03]
[1739196915123,20.81882344,206.74,206.73,0.03]
[1739196916222,32.0585403,206.74,206.73,0.03]
[1739196918057,35.41045542,206.74,206.73,0.03]
[1739196918945,34.41045542,206.74,206.73,0.03]
[1739196919128,29.57355542,206.74,206.73,0.03]
[1739196919651,26.2216403,206.74,206.73,0.03]
[1739196920360,31.0585403,206.74,206.73,0.03]
[1739196920650,31.1215403,206.74,206.73,0.03]
[1739196921947,32.1215403,206.74,206.73,0.03]
[1739196922630,31.1215403,206.74,206.73,0.03]
[1739196923146,32.1215403,206.74,206.73,0.03]
[1739196923348,39.71628082,206.74,206.73,0.03]
[1739196924536,38.71628082,206.74,206.73,0.03]
[1739196924853,39.71628082,206.74,206.73,0.03]
[1739196927958,38.71628082,206.74,206.73,0.03]
[1739196929267,31.1215403,206.74,206.73,0.03]
[1739196929759,27.08286929,206.74,206.73,0.03]
[1739196931749,31.13280272,206.74,206.73,0.03]
[1739196932661,32.13280272,206.74,206.73,0.03]
[1739196933046,20.663,206.71,206.7,0.03]
[1739196933249,57.48438215,206.71,206.7,0.03]
[1739196934165,0.663,206.6,206.59,1.6233]
[1739196934658,0.663,206.57,206.53,11.28097928]
[1739196934861,11.25097928,206.6,206.53,0.03]
[1739196934862,0.663,206.54,206.53,0.03]
[1739196936242,11.91397928,206.54,206.53,0.03]
[1739196936464,0.663,206.54,206.53,0.03]
[1739196939350,0.663,206.54,206.53,11.28097928]
[1739196939556,0.663,206.56,206.53,11.28097928]
[1739196939757,0.663,206.56,206.55,11.25097928]
[1739196940668,6.4289,206.71,206.6,4.8402]
[1739196940669,11.25097928,206.71,206.6,4.8402]
[1739196940989,7.59474052,206.73,206.67,11.25097928]
[1739196941671,7.59474052,206.73,206.7,11.25097928]
[1739196941875,7.59474052,206.73,206.71,11.25097928]
[1739196942174,7.59474052,206.73,206.72,11.25097928]
[1739196942767,0.063,206.74,206.72,16.08837928]
[1739196942961,0.063,206.74,206.73,11.25097928]
[1739196943587,0.0001,206.74,206.73,11.25097928]
[1739196945086,0.063,206.8,206.73,11.25097928]
[1739196945270,11.25097928,206.78,206.7,11.25097928]
[1739196945471,11.25097928,206.76,206.69,17.71437928]
[1739196945782,11.25097928,206.74,206.67,11.25097928]
[1739196945987,11.25097928,206.73,206.66,11.25097928]
[1739196946164,11.25097928,206.7,206.64,7.24575559]
[1739196946582,1.0,206.79,206.64,18.49673487]
[1739196946583,11.25097928,206.71,206.64,18.49673487]
[1739196946966,11.25097928,206.72,206.64,18.49673487]
[1739196947180,11.25097928,206.72,206.64,11.25097928]
[1739196947683,11.25097928,206.72,206.63,4.8395]
[1739196947684,18.00176069,206.74,206.66,18.00176069]
[1739196947863,18.00176069,206.76,206.68,18.00176069]
[1739196948065,18.00176069,206.76,206.69,18.00176069]
[1739196948270,18.00176069,206.75,206.68,18.00176069]
[1739196948470,18.00176069,206.75,206.67,18.00176069]
[1739196948990,18.00176069,206.74,206.66,18.00176069]
[1739196949289,18.00176069,206.7,206.63,38.00176069]
[1739196949489,18.00176069,206.68,206.61,18.00176069]
[1739196949887,18.00176069,206.66,206.59,24.46516069]
[1739196950079,18.00176069,206.65,206.58,7.24575559]
[1739196950386,13.41184853,206.65,206.58,25.24751628]
[1739196950983,22.84036069,206.67,206.59,18.00176069]
[1739196951287,0.90752678,206.69,206.62,18.00176069]
[1739196951288,22.84006069,206.69,206.62,18.00176069]
[1739196951669,18.00176069,206.67,206.6,18.00176069]
[1739196951870,18.00176069,206.66,206.58,18.00176069]
[1739196952081,18.00176069,206.64,206.57,18.00176069]
[1739196952390,18.00176069,206.61,206.55,0.03]
[1739196952686,18.90941379,206.6,206.55,0.03]
[1739196952887,18.00176069,206.59,206.55,0.03]
[1739196953091,18.00176069,206.58,206.55,0.03]
[1739196953387,22.84256069,206.58,206.55,0.03]
[1739196953891,18.00176069,206.61,206.55,0.03]
[1739196954087,18.00176069,206.62,206.55,0.03]
[1739196954299,13.41184853,206.59,206.55,0.03]
[1739196954489,18.00176069,206.59,206.55,0.03]
[1739196954794,18.00176069,206.6,206.55,0.03]
[1739196954998,19.15937846,206.62,206.55,0.03]
[1739196954999,18.00176069,206.59,206.55,0.03]
[1739196955388,22.84236069,206.59,206.55,0.03]
[1739196955699,18.00176069,206.57,206.55,0.03]
[1739196955892,18.00176069,206.56,206.55,0.03]
[1739196956406,18.00176069,206.57,206.55,0.03]
[1739196956979,13.41184853,206.58,206.55,0.03]
[1739196957795,13.21184853,206.58,206.55,0.03]
[1739196958181,18.00176069,206.57,206.55,0.03]
[1739196958516,18.00176069,206.58,206.55,0.03]
[1739196959598,18.90962766,206.59,206.55,0.03]
[1739196959777,13.41184853,206.58,206.55,0.03]
[1739196959979,13.21184853,206.58,206.55,0.03]
[1739196960295,32.12140128,206.58,206.55,0.03]
[1739196960474,18.00176069,206.57,206.55,0.03]
[1739196960677,22.84226069,206.59,206.55,0.03]
[1739196960873,18.00176069,206.58,206.55,0.03]
[1739196961288,18.00176069,206.6,206.55,0.03]
[1739196961879,18.00176069,206.57,206.55,0.03]
[1739196962202,18.00176069,206.62,206.55,0.03]
[1739196962378,18.00176069,206.63,206.56,18.00176069]
[1739196962578,4.8393,206.64,206.55,18.03176069]
[1739196962786,13.41184853,206.63,206.55,18.03176069]
[1739196962975,13.41184853,206.63,206.55,0.03]
[1739196963205,4.8391,206.65,206.55,0.03]
[1739196963574,18.00176069,206.66,206.58,18.00176069]
[1739196963780,10.29377534,206.67,206.62,18.00176069]
[1739196964002,10.29377534,206.67,206.64,18.00176069]
[1739196964207,18.00176069,206.72,206.65,18.00176069]
[1739196964208,22.83926069,206.72,206.65,18.00176069]
[1739196964517,22.83926069,206.72,206.64,18.00176069]
[1739196964677,0.063,206.74,206.68,18.00176069]
[1739196964888,0.063,206.74,206.73,18.00176069]
[1739196965219,0.063,206.74,206.72,18.00176069]
[1739196965686,0.063,206.74,206.73,18.00176069]
[1739196967715,0.063,206.74,206.73,22.83896069]
[1739196968828,0.063,206.74,206.73,18.00176069]
[1739196972246,0.063,206.74,206.71,38.00176069]
[1739196972433,0.063,206.74,206.73,18.00176069]
[1739196972939,0.063,206.74,206.73,22.83896069]
[1739196976309,0.063,206.8,206.76,20.0]
[1739196976547,0.063,206.8,206.79,18.00176069]
[1739196977045,0.063,206.8,206.79,22.83756069]
[1739196978045,0.063,206.8,206.79,28.83936069]
[1739196979741,0.0001,206.8,206.79,47.84112138]
[1739196979932,0.0001,206.8,206.79,62.25296991]
[1739196980135,0.063,206.87,206.82,20.0]
[1739196980334,0.063,206.87,206.86,18.00176069]
[1739196981225,74.01298046,206.95,206.89,20.0]
[1739196981432,65.48366977,206.95,206.94,18.00176069]
[1739196982129,65.48366977,206.95,206.9,7.6245]
[1739196982326,65.48366977,206.95,206.94,18.00176069]
[1739196982951,40.22646977,206.95,206.94,18.00176069]
[1739196983156,0.063,207.0,206.99,20.0]
[1739196983359,0.063,207.08,207.01,20.0]
[1739196983633,0.063,207.08,207.07,18.00176069]
[1739196984057,0.063,207.08,207.04,18.00176069]
[1739196984258,18.06476069,207.08,207.01,18.00176069]
[1739196984455,0.063,207.08,206.98,4.8313]
[1739196984664,13.41184853,207.07,206.98,18.00176069]
[1739196984883,13.41184853,207.07,206.88,1.0]
[1739196984884,13.41184853,207.05,206.92,4.8327]
[1739196985086,0.90600053,207.04,206.86,4.8341]
[1739196985388,4.8302,207.03,206.89,20.0]
[1739196985691,4.8298,207.05,206.89,20.0]
[1739196985860,18.00176069,207.04,206.96,18.00176069]
[1739196986066,18.00176069,207.02,206.95,18.00176069]
[1739196986274,18.00176069,206.99,206.92,18.00176069]
[1739196986468,18.00176069,206.98,206.91,18.00176069]
[1739196986887,18.00176069,206.99,206.91,18.00176069]
[1739196987059,13.41184853,206.99,206.92,18.00176069]
[1739196987261,18.00176069,207.02,206.94,18.00176069]
[1739196987459,18.00176069,207.05,206.98,18.00176069]
[1739196987678,4.8297,207.06,207.0,18.00176069]
[1739196988065,0.063,207.08,207.04,18.00176069]
[1739196988264,22.89396069,207.08,207.01,18.00176069]
[1739196988666,4.8922,207.08,207.01,18.00176069]
[1739196988979,0.063,207.08,207.03,18.00176069]
[1739196989159,0.063,207.08,207.05,18.00176069]
[1739196989360,0.063,207.08,207.04,18.00176069]
[1739196990291,0.063,207.08,207.05,18.00176069]
[1739196990489,0.063,207.08,207.07,18.00176069]
[1739196991367,0.063,207.08,207.07,22.83096069]
[1739196993189,0.063,207.08,207.07,36.24280922]
[1739196993480,0.0001,207.08,207.07,36.24280922]
[1739196993681,0.0001,207.08,207.07,22.83096069]
[1739196994989,0.0001,207.08,207.07,18.00176069]
[1739196995369,22.89216069,207.15,207.07,18.00176069]
[1739196995571,18.00176069,207.11,207.04,18.00176069]
[1739196995770,18.00176069,207.11,207.03,18.00176069]
[1739196995970,18.00176069,207.09,207.02,18.00176069]
[1739196996278,18.00176069,207.09,207.0,18.00176069]
[1739196996279,18.00176069,207.07,207.0,18.00176069]
[1739196996481,18.00176069,207.07,206.91,2.0]
[1739196996482,18.00176069,207.05,206.98,18.00176069]
[1739196996683,13.41184853,207.08,206.97,4.8314]
[1739196996684,18.00176069,207.04,206.97,22.83316069]
[1739196996869,18.00176069,207.05,206.98,18.00176069]
[1739196997076,18.00176069,207.1,207.03,18.00176069]
[1739196997286,18.00176069,207.1,207.02,18.00176069]
[1739196997484,13.41184853,207.1,207.04,18.00176069]
[1739196997989,13.41184853,207.1,207.03,18.00176069]
[1739196998489,13.41184853,207.07,207.01,18.00176069]
[1739196998679,18.00176069,207.04,206.96,22.83356069]
[1739196998874,18.00176069,207.03,206.95,18.00176069]
[1739196999494,18.00176069,207.02,206.94,38.00176069]
[1739196999790,18.00176069,207.01,206.94,18.00176069]
[1739196999972,18.00176069,207.0,206.92,22.83446069]
[1739197000173,18.00176069,207.0,206.95,20.0]
[1739197000375,13.41184853,206.99,206.92,18.00176069]
[1739197000688,18.00176069,206.96,206.88,22.83516069]
[1739197000888,18.00176069,206.95,206.88,4.8334]
[1739197001092,18.00176069,206.95,206.9,20.0]
[1739197001587,13.41184853,206.94,206.88,18.00176069]
[1739197001792,18.00176069,206.91,206.83,18.00176069]
[1739197001969,18.00176069,206.93,206.85,18.00176069]
[1739197002176,13.41184853,206.92,206.85,18.00176069]
[1739197003294,4.8323,206.94,206.8,18.00176069]
[1739197003295,18.00176069,206.87,206.8,18.00176069]
[1739197003475,18.00176069,206.87,206.79,18.00176069]
[1739197003788,18.00176069,206.87,206.78,18.00176069]
[1739197003993,18.00176069,206.87,206.81,20.0]
[1739197004195,18.00176069,206.86,206.78,18.00176069]
[1739197004492,17.60176069,206.9,206.82,18.00176069]
[1739197004670,18.00176069,206.91,206.83,18.00176069]
[1739197004876,18.00176069,206.92,206.84,18.00176069]
[1739197005191,18.00176069,206.93,206.85,18.00176069]
[1739197005392,13.41184853,206.92,206.85,18.00176069]
[1739197005786,18.00176069,206.94,206.86,22.83586069]
[1739197005990,18.00176069,206.96,206.88,18.00176069]
[1739197006386,13.41184853,206.95,206.88,18.00176069]
[1739197006695,13.41184853,206.93,206.86,22.83586069]
[1739197006876,31.41360922,206.93,206.86,4.8341]
[1739197007494,18.00176069,206.92,206.86,4.8341]
[1739197007673,18.00176069,206.87,206.8,18.00176069]
[1739197007878,18.00176069,206.85,206.77,18.00176069]
[1739197008279,13.41184853,206.86,206.79,18.00176069]
[1739197008475,18.00176069,206.88,206.8,18.00176069]
[1739197008695,18.00176069,206.88,206.82,18.00176069]
[1739197008896,13.41184853,206.89,206.82,18.00176069]
[1739197009401,13.41184853,206.89,206.75,17.9283]
[1739197009402,18.00176069,206.93,206.86,18.00176069]
[1739197009577,13.41184853,206.92,206.85,18.00176069]
[1739197009974,31.41360922,206.9,206.83,18.00176069]
[1739197010196,18.00176069,206.88,206.82,20.0]
[1739197010499,31.41360922,206.85,206.77,18.00176069]
[1739197010800,18.00176069,206.87,206.79,18.00176069]
[1739197011120,24.58026069,206.88,206.81,18.00176069]
[1739197011395,6.5785,206.88,206.81,18.00176069]
[1739197011600,18.00176069,206.92,206.85,18.00176069]
[1739197011771,18.00176069,206.92,206.8,18.00176069]
[1739197011772,24.58026069,206.94,206.86,22.83576069]
[1739197011976,6.5785,206.94,206.89,18.00176069]
[1739197012199,6.5785,206.94,206.9,18.00176069]
[1739197012401,1.6103,206.98,206.92,18.00176069]
[1739197012588,1.6103,206.98,206.93,18.00176069]
[1739197012989,1.6103,206.98,206.92,18.00176069]
[1739197013404,19.61206069,206.98,206.91,18.00176069]
[1739197013794,18.00176069,206.96,206.89,18.00176069]
[1739197014191,18.00176069,206.97,206.89,18.00176069]
[1739197014403,13.41184853,206.96,206.9,18.00176069]
[1739197014702,31.41360922,206.96,206.88,18.00176069]
[1739197015613,36.24560922,206.96,206.88,18.00176069]
[1739197015915,36.24560922,206.96,206.88,22.83536069]
[1739197016310,31.41360922,206.93,206.85,22.83616069]
[1739197016503,18.00176069,206.89,206.83,4.8346]
[1739197017104,18.00176069,206.9,206.86,0.03]
[1739197019014,13.41184853,206.91,206.86,0.03]
[1739197019619,18.00176069,206.94,206.86,0.03]
[1739197019913,0.063,206.96,206.9,18.00176069]
[1739197020316,0.063,206.96,206.86,0.03]
[1739197020317,0.063,206.96,206.92,18.00176069]
[1739197020696,0.063,206.96,206.9,18.00176069]
[1739197021214,18.00176069,206.92,206.86,4.8641]
[1739197021409,18.00176069,206.92,206.86,0.03]
[1739197021614,13.41184853,206.89,206.86,0.03]
[1739197021801,31.41360922,206.87,206.86,0.03]
[1739197022199,32.32019953,206.87,206.86,0.03]
[1739197022811,31.41360922,206.87,206.86,0.03]
[1739197023225,36.24750922,206.87,206.86,0.03]
[1739197023622,31.41360922,206.87,206.86,0.03]
[1739197023806,24.35476069,206.89,206.86,0.03]
[1739197024306,13.41184853,206.88,206.86,0.03]
[1739197024509,32.32008015,206.87,206.86,0.03]
[1739197024829,33.88638015,206.87,206.86,0.03]
[1739197025402,38.72028015,206.87,206.86,0.03]
[1739197026096,32.97990922,206.87,206.86,0.03]
[1739197026334,24.35476069,206.89,206.86,0.03]
[1739197026624,6.353,206.95,206.87,18.00176069]
[1739197026824,6.353,206.95,206.89,18.00176069]
[1739197027037,11.1851,206.95,206.89,18.00176069]
[1739197027331,13.47484853,206.96,206.91,18.00176069]
[1739197027545,0.063,206.96,206.92,18.00176069]
[1739197027907,0.063,206.96,206.93,18.00176069]
[1739197028120,0.063,206.96,206.95,18.00176069]
[1739197028935,24.35476069,207.11,206.98,20.0]
[1739197029122,18.00176069,207.09,207.02,18.00176069]
[1739197029308,18.00176069,207.09,207.01,18.00176069]
[1739197029502,18.00176069,207.1,207.02,18.00176069]
[1739197029698,18.00176069,207.12,207.04,18.00176069]
[1739197029902,22.82976069,207.13,207.05,18.00176069]
[1739197030125,13.41184853,207.13,207.06,18.00176069]
[1739197030326,0.063,207.14,207.07,18.00176069]
[1739197030504,4.8279,207.13,207.07,18.00176069]
[1739197030708,4.8286,207.1,207.03,38.00176069]
[1739197031033,4.8286,207.1,207.04,18.00176069]
[1739197031034,13.41184853,207.1,207.04,18.00176069]
[1739197031208,18.00176069,207.13,207.06,18.00176069]
[1739197031622,13.41184853,207.11,207.04,18.00176069]
[1739197032911,13.41184853,207.11,207.06,18.00176069]
[1739197033112,18.06476069,207.14,207.06,18.00176069]
[1739197033317,0.063,207.14,207.06,18.00176069]
[1739197033524,0.063,207.14,207.07,18.00176069]
[1739197034133,22.82966069,207.13,207.07,20.0]
[1739197034303,18.00176069,207.13,207.07,20.0]
[1739197034508,13.41184853,207.13,207.07,38.00176069]
[1739197034732,0.063,207.14,207.07,42.83096069]
[1739197037019,18.00176069,207.13,207.05,22.83126069]
[1739197037215,18.00176069,207.11,207.04,18.00176069]
[1739197037531,0.063,207.14,207.07,18.00176069]
[1739197038912,0.063,207.14,207.07,22.83096069]
[1739197039114,0.0001,207.08,207.07,41.83272138]
[1739197039330,0.063,207.14,207.11,1.0]
[1739197039532,0.063,207.14,207.13,18.00176069]
[1739197040612,0.0001,207.14,207.13,19.00176069]
[1739197041134,0.0001,207.14,207.13,22.82956069]
[1739197043951,0.0001,207.15,207.13,22.82956069]
[1739197044134,0.0001,207.15,207.14,18.00176069]
[1739197044820,0.0001,207.15,207.14,31.41360922]
[1739197045036,6.6e-05,207.25,207.18,24.8267]
[1739197045247,6.6e-05,207.25,207.21,18.00176069]
[1739197045446,6.6e-05,207.25,207.2,18.00176069]
[1739197046041,18.00176069,207.22,207.15,18.00176069]
[1739197046242,18.00176069,207.23,207.16,18.00176069]
[1739197046548,18.00176069,207.22,207.14,18.00176069]
[1739197046850,18.00176069,207.2,207.12,18.00176069]
[1739197047159,18.00176069,207.21,207.15,20.0]
[1739197047327,18.00176069,207.19,207.15,20.0]
[1739197047527,18.00176069,207.19,207.12,18.00176069]
[1739197047730,18.00176069,207.2,207.12,18.00176069]